bitfinex/quotes_BTCUSD_20221001
["timestamp","ask_amount","ask_price","bid_price","bid_amount"]
[1664633186518,2.84274162,19335.0,19334.0,0.0011]
[1664633187238,2.77474162,19335.0,19334.0,0.0011]
[1664633187682,2.97675352,19335.0,19334.0,0.0011]
[1664633187920,3.04875352,19335.0,19334.0,0.0011]
[1664633189075,2.97675352,19335.0,19334.0,0.0011]
[1664633189763,3.01275352,19335.0,19334.0,0.0011]
[1664633191155,2.97675352,19335.0,19334.0,0.0011]
[1664633191830,0.09990393,19331.0,19330.0,1.1366]
[1664633192062,1.7090837,19331.0,19329.0,0.699415]
[1664633192300,0.81173144,19330.0,19329.0,0.132515]
[1664633192780,0.81173144,19330.0,19329.0,0.137515]
[1664633192781,0.51173144,19330.0,19329.0,0.137515]
[1664633193933,0.91462444,19330.0,19329.0,0.137515]
[1664633194171,0.55673144,19330.0,19329.0,0.137515]
[1664633194952,0.51173144,19330.0,19329.0,0.137515]
[1664633195795,0.55673144,19330.0,19329.0,0.137515]
[1664633196864,0.91462444,19330.0,19329.0,0.137515]
[1664633197056,0.51173144,19330.0,19329.0,0.137515]
[1664633197884,0.55873144,19330.0,19329.0,0.132515]
[1664633198976,0.51173144,19330.0,19329.0,0.182515]
[1664633199473,0.51173144,19330.0,19329.0,0.132515]
[1664633200066,0.51173144,19330.0,19329.0,0.182515]
[1664633200067,0.054,19330.0,19329.0,0.182515]
[1664633200743,0.054,19330.0,19329.0,0.232515]
[1664633200960,0.054,19330.0,19329.0,0.361854]
[1664633201403,0.51173144,19332.0,19329.0,0.361854]
[1664633201662,0.51173144,19332.0,19330.0,0.258818]
[1664633202112,0.51173144,19332.0,19330.0,1.158818]
[1664633203029,0.51173144,19333.0,19331.0,0.05]
[1664633203263,0.51173144,19333.0,19331.0,0.388119]
[1664633203490,0.51173144,19333.0,19331.0,0.258794]
[1664633203933,0.59173144,19333.0,19331.0,0.258794]
[1664633205088,0.51173144,19333.0,19331.0,0.258794]
[1664633205815,0.56773144,19333.0,19331.0,0.258794]
[1664633207201,0.51173144,19333.0,19331.0,0.258794]
[1664633207892,0.56673144,19333.0,19331.0,0.258794]
[1664633208550,0.96952837,19332.0,19331.0,0.258794]
[1664633208800,0.86898464,19332.0,19331.0,0.258794]
[1664633209020,1.22687764,19332.0,19331.0,0.258794]
[1664633209304,0.86898464,19332.0,19331.0,0.258794]
[1664633209757,1.22687764,19332.0,19331.0,0.258794]
[1664633209964,0.92698464,19332.0,19331.0,0.258794]
[1664633210957,0.56973144,19332.0,19331.0,0.258794]
[1664633211179,0.51173144,19332.0,19331.0,0.258794]
[1664633211620,0.86962444,19332.0,19331.0,0.258794]
[1664633211865,0.59173144,19332.0,19331.0,0.258794]
[1664633213169,0.51173144,19332.0,19331.0,0.258794]
[1664633213858,0.56973144,19332.0,19331.0,0.258794]
[1664633214220,0.92762444,19332.0,19331.0,0.258794]
[1664633214457,0.56973144,19332.0,19331.0,0.258794]
[1664633215160,0.51173144,19332.0,19331.0,0.258794]
[1664633215928,0.92762444,19332.0,19331.0,0.258794]
[1664633216158,0.56973144,19332.0,19331.0,0.258794]
[1664633217051,0.51173144,19332.0,19331.0,0.258794]
[1664633217811,0.56973144,19332.0,19331.0,0.258794]
[1664633218502,0.92762444,19332.0,19331.0,0.258794]
[1664633218738,0.56973144,19332.0,19331.0,0.258794]
[1664633219160,0.51173144,19332.0,19331.0,0.258794]
[1664633219614,0.51173144,19332.0,19331.0,0.129397]
[1664633219832,0.91962444,19332.0,19331.0,0.129397]
[1664633220068,1.21962444,19332.0,19331.0,0.129397]
[1664633220301,0.56173144,19332.0,19331.0,0.129397]
[1664633221257,0.51173144,19332.0,19331.0,0.129397]
[1664633221832,0.56573144,19332.0,19331.0,0.129397]
[1664633222367,0.56573144,19332.0,19331.0,0.12930303]
[1664633222589,0.92362444,19332.0,19331.0,0.12930303]
[1664633223273,0.51173144,19332.0,19331.0,0.12930303]
[1664633223972,0.55973144,19332.0,19331.0,0.12930303]
[1664633224713,0.76144942,19332.0,19331.0,0.12930303]
[1664633224932,1.11934242,19332.0,19331.0,0.12930303]
[1664633225152,1.79433482,19332.0,19331.0,0.12930303]
[1664633226046,1.84933482,19332.0,19331.0,0.12930303]
[1664633226708,1.49144182,19332.0,19331.0,0.12930303]
[1664633226926,1.84933482,19332.0,19331.0,0.12930303]
[1664633227142,1.79433482,19332.0,19331.0,0.12930303]
[1664633227362,1.79433482,19332.0,19330.0,0.129409]
[1664633227593,2.33406905,19331.0,19330.0,0.129409]
[1664633227837,3.1143276,19331.0,19330.0,0.129409]
[1664633228778,2.7564346,19331.0,19330.0,0.129409]
[1664633229008,3.1143276,19331.0,19330.0,0.129409]
[1664633229910,3.1883276,19331.0,19330.0,0.129409]
[1664633231314,3.1143276,19331.0,19330.0,0.129409]
[1664633231775,1.030893,19330.0,19329.0,0.002]
[1664633232009,3.47385043,19330.0,19329.0,0.002]
[1664633232465,0.45779693,19329.0,19328.0,0.0011]
[1664633232714,2.01775515,19329.0,19328.0,0.0011]
[1664633233169,2.06775515,19329.0,19328.0,0.0061]
[1664633233394,2.09867929,19329.0,19328.0,0.0061]
[1664633234065,2.08567929,19329.0,19328.0,0.0061]
[1664633234523,2.13567929,19329.0,19328.0,0.0061]
[1664633234746,2.08567929,19329.0,19328.0,0.0061]
[1664633235203,2.04867929,19329.0,19328.0,0.0061]
[1664633235432,2.09867929,19329.0,19328.0,0.0061]
[1664633236100,2.13567929,19329.0,19328.0,0.0061]
[1664633237511,2.67927929,19329.0,19328.0,0.0061]
[1664633237720,2.59227929,19329.0,19328.0,0.0061]
[1664633237936,2.62827929,19329.0,19328.0,0.0061]
[1664633238840,0.87296582,19329.0,19328.0,0.0061]
[1664633239078,0.91302444,19329.0,19328.0,0.0061]
[1664633239354,0.91302444,19329.0,19327.0,0.002]
[1664633239355,0.09990393,19328.0,19327.0,0.002]
[1664633239585,3.62350983,19328.0,19327.0,0.002]
[1664633239804,3.4313405,19328.0,19327.0,0.002]
[1664633240089,4.29830869,19328.0,19327.0,0.002]
[1664633240312,1.05139693,19327.0,19326.0,0.00680184]
[1664633240527,2.76636222,19327.0,19326.0,0.00680184]
[1664633240746,5.37132391,19327.0,19326.0,0.00680184]
[1664633240963,5.40224805,19327.0,19326.0,0.00680184]
[1664633242106,5.45424805,19327.0,19326.0,0.00680184]
[1664633243228,5.40224805,19327.0,19326.0,0.00680184]
[1664633243730,5.40224805,19327.0,19326.0,1.84e-06]
[1664633244010,2.21579295,19324.0,19322.0,0.0031]
[1664633244241,3.61432918,19324.0,19322.0,0.0031]
[1664633244474,3.71048399,19324.0,19322.0,0.0031]
[1664633244694,4.05301831,19324.0,19322.0,0.0031]
[1664633244914,4.57822989,19324.0,19322.0,0.0031]
[1664633245189,3.46173356,19324.0,19322.0,0.0031]
[1664633245416,2.50031955,19324.0,19322.0,0.0031]
[1664633246072,2.54731955,19324.0,19322.0,0.0031]
[1664633246288,2.18942655,19324.0,19322.0,0.0031]
[1664633246504,2.0512755,19324.0,19322.0,0.0031]
[1664633246736,2.0438755,19324.0,19322.0,0.0031]
[1664633247189,1.9968755,19324.0,19322.0,0.0031]
[1664633247413,2.2968755,19324.0,19322.0,0.0031]
[1664633247682,2.53656305,19324.0,19322.0,0.0031]
[1664633248102,2.58656305,19324.0,19322.0,0.132561]
[1664633248322,1.81032705,19324.0,19322.0,0.0031]
[1664633249202,2.23331945,19324.0,19322.0,0.0031]
[1664633249430,2.18331945,19324.0,19322.0,0.0031]
[1664633249669,1.76032705,19324.0,19322.0,0.0031]
[1664633250120,1.80732705,19324.0,19322.0,0.0031]
[1664633250402,1.2676395,19324.0,19322.0,0.0031]
[1664633250868,1.04599644,19324.0,19322.0,0.0031]
[1664633251314,0.91662444,19324.0,19322.0,0.0031]
[1664633251747,0.86462444,19324.0,19322.0,0.0031]
[1664633251971,0.94362444,19324.0,19322.0,0.0031]
[1664633252199,0.94362444,19324.0,19323.0,0.31399933]
[1664633252428,0.079,19324.0,19323.0,0.10916]
[1664633252654,0.079,19324.0,19323.0,0.20916]
[1664633253350,2.36330095,19328.0,19323.0,0.20916]
[1664633253582,0.51173144,19327.0,19324.0,0.30483933]
[1664633253811,0.51173144,19327.0,19324.0,0.43428633]
[1664633254037,0.51173144,19327.0,19324.0,0.81795994]
[1664633254492,0.5112922,19327.0,19326.0,0.05]
[1664633254963,0.8691852,19327.0,19325.0,0.129437]
[1664633255171,0.5112922,19327.0,19325.0,0.129437]
[1664633256153,0.5642922,19327.0,19325.0,0.129437]
[1664633257195,0.5112922,19327.0,19325.0,0.129437]
[1664633258208,0.5642922,19327.0,19325.0,0.129437]
[1664633259339,0.357893,19326.0,19325.0,0.129437]
[1664633259575,0.5112922,19327.0,19325.0,0.129437]
[1664633260254,0.5642922,19327.0,19325.0,0.129437]
[1664633261320,0.5112922,19327.0,19325.0,0.129437]
[1664633262188,0.5642922,19327.0,19325.0,0.129437]
[1664633263318,0.5112922,19327.0,19325.0,0.129437]
[1664633264169,0.5642922,19327.0,19325.0,0.129437]
[1664633265291,0.5112922,19327.0,19325.0,0.129437]
[1664633266201,0.5642922,19327.0,19325.0,0.129437]
[1664633266434,0.5642922,19327.0,19326.0,0.05]
[1664633266671,0.5642922,19327.0,19325.0,1.029437]
[1664633266672,0.5642922,19327.0,19325.0,0.129437]
[1664633267373,0.5112922,19327.0,19325.0,0.129437]
[1664633268288,0.5322922,19327.0,19325.0,0.129437]
[1664633269385,0.5112922,19327.0,19325.0,0.129437]
[1664633270295,0.5322922,19327.0,19325.0,0.129437]
[1664633271223,0.5322922,19327.0,19326.0,0.05]
[1664633271407,0.5112922,19327.0,19326.0,0.05]
[1664633272051,0.5182922,19327.0,19326.0,0.05]
[1664633272410,0.5182922,19327.0,19325.0,0.129437]
[1664633272866,0.5182922,19327.0,19326.0,0.05]
[1664633273084,0.5182922,19327.0,19325.0,0.129437]
[1664633273516,0.5112922,19327.0,19325.0,0.129437]
[1664633273746,0.5112922,19327.0,19326.0,0.05]
[1664633274208,0.5322922,19327.0,19326.0,0.05]
[1664633274404,0.5322922,19327.0,19325.0,0.129437]
[1664633274684,0.5322922,19327.0,19326.0,0.05]
[1664633275772,0.5322922,19327.0,19325.0,0.129437]
[1664633276273,0.5392922,19327.0,19325.0,0.129437]
[1664633277394,0.5112922,19327.0,19325.0,0.129437]
[1664633277858,0.5112922,19327.0,19326.0,0.05]
[1664633278086,0.5322922,19327.0,19325.0,0.129437]
[1664633278310,0.5322922,19327.0,19326.0,0.05]
[1664633278572,0.5322922,19327.0,19325.0,0.129437]
[1664633278784,0.5322922,19327.0,19325.0,0.258879]
[1664633279437,0.5112922,19327.0,19325.0,0.258879]
[1664633279651,0.5112922,19327.0,19326.0,0.05]
[1664633280115,0.5182922,19327.0,19326.0,0.05]
[1664633280337,0.5182922,19327.0,19325.0,0.517681]
[1664633280540,0.8761852,19327.0,19326.0,0.05]
[1664633280760,0.5182922,19327.0,19326.0,0.05]
[1664633280973,0.5182922,19327.0,19325.0,0.388244]
[1664633281188,0.5182922,19327.0,19326.0,0.05]
[1664633281401,0.5112922,19327.0,19326.0,0.05]
[1664633282393,0.5182922,19327.0,19326.0,0.05]
[1664633283242,0.5182922,19327.0,19325.0,0.388244]
[1664633283457,0.5112922,19327.0,19325.0,0.388244]
[1664633283732,0.5112922,19327.0,19326.0,0.05]
[1664633283955,0.817951,19330.0,19327.0,0.05]
[1664633283956,0.51173144,19328.0,19327.0,0.05]
[1664633284181,0.129258,19330.0,19328.0,0.05]
[1664633284182,0.51173144,19329.0,19328.0,0.05]
[1664633284394,0.51173144,19329.0,19328.0,0.179417]
[1664633285296,0.51173144,19329.0,19328.0,0.129417]
[1664633285556,0.51173144,19329.0,19328.0,0.258834]
[1664633286261,0.91862444,19329.0,19328.0,0.258834]
[1664633286483,0.56073144,19329.0,19328.0,0.258834]
[1664633287375,0.51173144,19329.0,19328.0,0.258834]
[1664633288251,0.56073144,19329.0,19328.0,0.258834]
[1664633289476,0.51173144,19329.0,19328.0,0.258834]
[1664633290139,0.56073144,19329.0,19328.0,0.258834]
[1664633291517,0.51173144,19329.0,19328.0,0.258834]
[1664633292170,0.56073144,19329.0,19328.0,0.258834]
[1664633293493,0.51173144,19329.0,19328.0,0.258834]
[1664633294400,0.56073144,19329.0,19328.0,0.258834]
[1664633294613,0.91862444,19329.0,19328.0,0.258834]
[1664633294832,0.56073144,19329.0,19328.0,0.258834]
[1664633295451,0.51173144,19329.0,19328.0,0.258834]
[1664633296343,0.56073144,19329.0,19328.0,0.258834]
[1664633297551,0.51173144,19329.0,19328.0,0.258834]
[1664633298170,0.56073144,19329.0,19328.0,0.258834]
[1664633299512,0.51173144,19329.0,19328.0,0.258834]
[1664633300158,0.56073144,19329.0,19328.0,0.258834]
[1664633300598,0.91862444,19329.0,19328.0,0.258834]
[1664633300843,0.56073144,19329.0,19328.0,0.258834]
[1664633301066,0.049,19329.0,19328.0,0.258834]
[1664633301590,0.517263,19330.0,19328.0,0.258834]
[1664633301802,0.89974344,19330.0,19328.0,0.258834]
[1664633302266,0.94573944,19330.0,19328.0,0.258834]
[1664633303639,0.89973944,19330.0,19328.0,0.258834]
[1664633303860,0.129246,19331.0,19328.0,0.46367333]
[1664633304060,0.51173144,19331.0,19330.0,7.386e-05]
[1664633304210,0.129236,19332.0,19330.0,0.10723386]
[1664633304211,0.129323,19332.0,19330.0,0.10723386]
[1664633304416,0.47829801,19335.0,19331.0,0.4229924]
[1664633304417,0.72582588,19335.0,19331.0,0.4229924]
[1664633304661,0.72582588,19335.0,19332.0,0.20483933]
[1664633304662,0.51173144,19334.0,19332.0,0.20483933]
[1664633304873,0.89965744,19334.0,19330.0,0.73137559]
[1664633305053,0.89965744,19334.0,19330.0,0.86070759]
[1664633305054,0.51173144,19333.0,19330.0,0.86070759]
[1664633305283,0.51173144,19334.0,19332.0,0.05]
[1664633305490,0.51173144,19334.0,19331.0,0.258806]
[1664633305491,0.51173144,19334.0,19333.0,0.05]
[1664633305714,0.51173144,19335.0,19333.0,0.05]
[1664633306192,0.51173144,19335.0,19334.0,0.05]
[1664633306406,0.51173144,19335.0,19334.0,0.5729924]
[1664633306407,0.048,19335.0,19334.0,0.5729924]
[1664633307566,0.24816293,19341.0,19334.0,1.46839745]
[1664633307809,0.51173144,19340.0,19337.0,0.1]
[1664633308024,0.51173144,19340.0,19339.0,0.05]
[1664633308251,0.59173144,19340.0,19339.0,0.05]
[1664633308485,0.59173144,19340.0,19339.0,0.25483933]
[1664633308699,0.08,19340.0,19339.0,0.05]
[1664633309173,0.08,19340.0,19339.0,0.04988106]
[1664633309610,0.67688667,19344.0,19339.0,0.04988106]
[1664633309832,0.67688667,19344.0,19340.0,0.20483933]
[1664633309833,0.57942011,19343.0,19340.0,0.20483933]
[1664633310068,0.51173144,19342.0,19341.0,0.04997713]
[1664633310512,0.084,19343.0,19341.0,0.20483933]
[1664633310730,0.084,19343.0,19342.0,0.38901642]
[1664633310956,0.084,19343.0,19342.0,0.04997713]
[1664633311625,0.005,19343.0,19342.0,0.04997713]
[1664633312328,0.084,19343.0,19342.0,0.04997713]
[1664633313652,0.005,19343.0,19342.0,0.04997713]
[1664633314208,0.085,19343.0,19342.0,0.04997713]
[1664633315492,0.005,19343.0,19342.0,0.04997713]
[1664633316401,0.085,19343.0,19342.0,0.04997713]
[1664633317987,0.005,19343.0,19342.0,0.04997713]
[1664633318337,0.085,19343.0,19342.0,0.04997713]
[1664633319634,0.005,19343.0,19342.0,0.04997713]
[1664633320298,0.084,19343.0,19342.0,0.04997713]
[1664633321581,0.005,19343.0,19342.0,0.04997713]
[1664633322315,0.084,19343.0,19342.0,0.04997713]
[1664633323536,0.005,19343.0,19342.0,0.04997713]
[1664633324421,0.061,19343.0,19342.0,0.04997713]
[1664633325676,0.005,19343.0,19342.0,0.04997713]
[1664633326544,0.061,19343.0,19342.0,0.04997713]
[1664633327699,0.005,19343.0,19342.0,0.04997713]
[1664633328279,0.061,19343.0,19342.0,0.04997713]
[1664633328507,0.061,19343.0,19341.0,0.129331]
[1664633328999,0.061,19343.0,19342.0,0.04997713]
[1664633329651,0.005,19343.0,19342.0,0.04997713]
[1664633330521,0.084,19343.0,19342.0,0.04997713]
[1664633331677,0.005,19343.0,19341.0,0.129331]
[1664633331978,0.64597644,19343.0,19340.0,0.129332]
[1664633332196,0.51173144,19342.0,19340.0,0.129332]
[1664633332417,0.89948844,19342.0,19340.0,0.129332]
[1664633332638,0.51173144,19341.0,19340.0,0.129332]
[1664633333121,0.51173144,19341.0,19337.0,1.2717464]
[1664633333344,0.83316077,19341.0,19339.0,0.129344]
[1664633333589,0.51173144,19340.0,19339.0,0.129344]
[1664633334480,0.58473144,19340.0,19339.0,0.129344]
[1664633335793,0.51173144,19340.0,19339.0,0.129344]
[1664633336386,0.58473144,19340.0,19339.0,0.129344]
[1664633336611,0.58473144,19340.0,19338.0,0.12935]
[1664633336836,0.71399644,19340.0,19338.0,0.12935]
[1664633337067,0.79831378,19340.0,19338.0,0.12935]
[1664633337709,0.72531378,19340.0,19338.0,0.12435]
[1664633338367,0.79531378,19340.0,19338.0,0.12435]
[1664633339795,0.72531378,19340.0,19338.0,0.12435]
[1664633340000,0.357893,19339.0,19338.0,0.12435]
[1664633340217,0.98384478,19340.0,19338.0,0.12435]
[1664633340390,1.05384478,19340.0,19338.0,0.12435]
[1664633341748,0.98384478,19340.0,19338.0,0.12435]
[1664633342390,1.05484478,19340.0,19338.0,0.12435]
[1664633343626,0.98384478,19340.0,19338.0,0.12435]
[1664633344557,1.05484478,19340.0,19338.0,0.12435]
[1664633345165,0.97052744,19340.0,19338.0,0.12435]
[1664633345374,0.05,19339.0,19338.0,0.12435]
[1664633345589,0.97052744,19340.0,19338.0,0.12435]
[1664633345801,0.89952744,19340.0,19338.0,0.12435]
[1664633346591,0.97152744,19340.0,19338.0,0.12435]
[1664633347729,0.89952744,19340.0,19338.0,0.12435]
[1664633348602,0.97152744,19340.0,19338.0,0.12435]
[1664633350037,0.05,19339.0,19338.0,0.12435]
[1664633350262,0.89952744,19340.0,19338.0,0.12435]
[1664633350475,0.97152744,19340.0,19338.0,0.12435]
[1664633350728,0.05,19339.0,19338.0,0.12435]
[1664633350991,0.97152744,19340.0,19338.0,0.12435]
[1664633351421,0.05,19339.0,19338.0,0.12435]
[1664633351645,0.97152744,19340.0,19338.0,0.12435]
[1664633351863,0.89952744,19340.0,19338.0,0.12435]
[1664633352383,1.04469712,19340.0,19338.0,0.12435]
[1664633352597,0.97152744,19340.0,19338.0,0.12435]
[1664633353629,0.05,19339.0,19338.0,0.12435]
[1664633354094,0.89952744,19340.0,19338.0,0.12435]
[1664633354257,0.05,19339.0,19338.0,0.253701]
[1664633354471,0.074,19339.0,19338.0,0.12435]
[1664633356183,0.89952744,19340.0,19338.0,0.12435]
[1664633356403,0.074,19339.0,19338.0,0.12435]
[1664633357724,0.89952744,19340.0,19338.0,0.12435]
[1664633357967,0.89952744,19340.0,19338.0,0.253701]
[1664633358671,0.97052744,19340.0,19338.0,0.253701]
[1664633359599,0.71199644,19340.0,19338.0,0.253701]
[1664633359820,0.64099644,19340.0,19338.0,0.253701]
[1664633360504,0.71299644,19340.0,19338.0,0.253701]
[1664633361851,0.64099644,19340.0,19338.0,0.253701]
[1664633362604,0.71299644,19340.0,19338.0,0.253701]
[1664633363280,0.58373144,19340.0,19338.0,0.382978]
[1664633363719,0.51173144,19340.0,19338.0,0.8059704]
[1664633363930,0.51173144,19340.0,19338.0,0.382978]
[1664633364362,0.51173144,19340.0,19338.0,0.641531]
[1664633364580,0.51173144,19340.0,19339.0,0.129272]
[1664633365273,0.86643857,19342.0,19338.0,0.9352424]
[1664633365496,0.64098644,19342.0,19338.0,0.71708933]
[1664633365728,0.83315577,19342.0,19338.0,0.71708933]
[1664633366169,0.83315577,19342.0,19339.0,0.129272]
[1664633366425,0.64098644,19342.0,19339.0,0.38796]
[1664633366639,0.70898644,19342.0,19339.0,0.38796]
[1664633367740,0.64098644,19342.0,19340.0,0.258676]
[1664633368199,0.64098644,19342.0,19340.0,0.129338]
[1664633368414,0.64098644,19342.0,19340.0,0.258676]
[1664633368629,0.71998644,19342.0,19340.0,0.258676]
[1664633369170,0.71998644,19342.0,19341.0,0.04997713]
[1664633369715,0.71998644,19342.0,19340.0,0.258676]
[1664633369931,0.71998644,19342.0,19341.0,0.04997713]
[1664633370189,0.71998644,19342.0,19340.0,0.258676]
[1664633370190,0.64098644,19342.0,19340.0,0.258676]
[1664633370638,0.71998644,19342.0,19340.0,0.258676]
[1664633370859,0.71998644,19342.0,19340.0,0.129338]
[1664633371081,0.05,19341.0,19340.0,0.258676]
[1664633371301,0.71998644,19342.0,19339.0,0.129272]
[1664633371550,0.71998644,19342.0,19340.0,0.04997713]
[1664633371767,0.64098644,19342.0,19340.0,0.129338]
[1664633372206,0.64098644,19342.0,19341.0,0.04997713]
[1664633372457,0.51173144,19342.0,19340.0,0.258676]
[1664633372688,0.59073144,19342.0,19340.0,0.258676]
[1664633373363,0.71998344,19342.0,19340.0,0.258676]
[1664633373817,0.079,19342.0,19341.0,0.04997713]
[1664633374263,0.58633833,19344.0,19341.0,0.04997713]
[1664633374473,0.51173144,19343.0,19341.0,0.30863913]
[1664633374703,0.065,19342.0,19341.0,0.30863913]
[1664633374920,0.065,19342.0,19341.0,0.17930813]
[1664633375349,0.065,19342.0,19341.0,0.129331]
[1664633375811,0.005,19343.0,19341.0,0.129331]
[1664633376031,0.388721,19344.0,19341.0,0.258662]
[1664633376248,0.90045244,19344.0,19341.0,0.258662]
[1664633376478,0.005,19343.0,19341.0,0.258662]
[1664633378610,0.085,19343.0,19341.0,0.258662]
[1664633379267,0.05,19342.0,19341.0,0.258662]
[1664633379937,0.001,19344.0,19341.0,1.78439101]
[1664633380150,0.001,19344.0,19341.0,0.77039344]
[1664633380365,0.001,19344.0,19341.0,2.15307915]
[1664633380366,0.005,19343.0,19341.0,2.15307915]
[1664633380604,0.005,19343.0,19341.0,3.83493005]
[1664633380812,0.005,19343.0,19341.0,3.35191439]
[1664633381054,0.005,19343.0,19341.0,3.29117778]
[1664633381276,0.005,19343.0,19341.0,3.65091142]
[1664633381516,0.005,19343.0,19341.0,3.27286254]
[1664633381967,0.005,19343.0,19341.0,3.17166782]
[1664633382195,0.005,19343.0,19341.0,3.20000281]
[1664633382410,0.005,19343.0,19341.0,3.04714809]
[1664633382792,0.005,19343.0,19341.0,3.20000281]
[1664633383211,0.005,19343.0,19341.0,3.09880809]
[1664633383423,0.005,19343.0,19341.0,3.04714809]
[1664633383837,0.005,19343.0,19341.0,3.09880809]
[1664633384085,0.005,19343.0,19341.0,3.01782375]
[1664633384269,0.005,19343.0,19341.0,0.83636375]
[1664633386327,0.005,19343.0,19342.0,0.904747]
[1664633387216,0.005,19343.0,19342.0,1.004747]
[1664633391781,0.005,19343.0,19342.0,1.51647844]
[1664633392206,0.005,19343.0,19342.0,1.56813844]
[1664633393379,0.005,19343.0,19342.0,1.004747]
[1664633393591,0.005,19343.0,19342.0,0.904747]
[1664633394784,0.005,19343.0,19342.0,0.954747]
[1664633395050,0.005,19343.0,19342.0,0.904747]
[1664633395410,0.005,19343.0,19342.0,0.954747]
[1664633395624,0.005,19343.0,19342.0,1.004747]
[1664633396381,0.005,19343.0,19342.0,1.012147]
[1664633396605,0.005,19343.0,19342.0,0.395138]
[1664633396837,0.005,19343.0,19342.0,0.387738]
[1664633398716,1.26663438,19343.0,19341.0,0.258662]
[1664633398950,0.51173144,19342.0,19341.0,0.258662]
[1664633399182,0.51173144,19342.0,19341.0,0.129331]
[1664633400353,0.86962444,19342.0,19341.0,0.129331]
[1664633400577,0.89540505,19342.0,19341.0,0.129331]
[1664633400843,0.95140505,19342.0,19341.0,0.129331]
[1664633401959,0.89540505,19342.0,19341.0,0.18858495]
[1664633402614,0.96540505,19342.0,19341.0,0.18858495]
[1664633404003,0.89540505,19342.0,19341.0,0.20320026]
[1664633404716,0.92140505,19342.0,19341.0,0.20320026]
[1664633405987,0.89540505,19342.0,19341.0,0.20320026]
[1664633406600,0.92140505,19342.0,19341.0,0.20320026]
[1664633407879,0.89540505,19342.0,19341.0,0.20320026]
[1664633408724,0.92140505,19342.0,19341.0,0.20320026]
[1664633410074,0.89540505,19342.0,19341.0,0.20320026]
[1664633410734,0.92140505,19342.0,19341.0,0.20320026]
[1664633412336,0.89540505,19342.0,19341.0,0.20320026]
[1664633412788,0.92140505,19342.0,19341.0,0.20320026]
[1664633414189,0.89540505,19342.0,19341.0,0.20320026]
[1664633414876,0.93540505,19342.0,19341.0,0.20320026]
[1664633416021,0.89540505,19342.0,19341.0,0.20320026]
[1664633417406,0.89540505,19342.0,19341.0,0.33245926]
[1664633418723,0.89540505,19342.0,19341.0,0.20320026]
[1664633418952,1.25329805,19342.0,19341.0,0.20320026]
[1664633419175,0.89540505,19342.0,19341.0,0.20320026]
[1664633420551,0.89540505,19342.0,19341.0,0.33245926]
[1664633423577,0.51173144,19342.0,19341.0,0.33245926]
[1664633426933,0.53773144,19342.0,19341.0,0.33245926]
[1664633428082,0.51173144,19342.0,19341.0,0.33245926]
[1664633433042,0.86962444,19342.0,19341.0,0.33245926]
[1664633433263,0.51173144,19342.0,19341.0,0.33245926]
[1664633433504,0.86962444,19342.0,19341.0,0.33245926]
[1664633433726,0.51173144,19342.0,19341.0,0.33245926]
[1664633436213,0.50673144,19342.0,19341.0,0.33245926]
[1664633436887,0.53273144,19342.0,19341.0,0.33245926]
[1664633438245,0.50673144,19342.0,19341.0,0.33245926]
[1664633442314,0.89040505,19342.0,19341.0,0.33245926]
[1664633443266,0.38467361,19344.0,19341.0,1.60369156]
[1664633443505,0.51273144,19344.0,19342.0,1.163401]
[1664633443720,0.005,19343.0,19342.0,0.258656]
[1664633443953,0.005,19343.0,19342.0,1.163407]
[1664633444251,0.005,19343.0,19342.0,0.258656]
[1664633444476,0.005,19343.0,19342.0,0.51719109]
[1664633444909,0.081,19343.0,19342.0,0.56719109]
[1664633445130,0.081,19343.0,19342.0,1.47194209]
[1664633445599,0.081,19343.0,19342.0,1.96762039]
[1664633446050,0.005,19343.0,19342.0,1.96762039]
[1664633446981,0.005,19343.0,19342.0,2.04462039]
[1664633448070,0.005,19343.0,19342.0,1.96762039]
[1664633448721,0.005,19343.0,19342.0,1.97502039]
[1664633448936,0.005,19343.0,19342.0,2.05302039]
[1664633449651,0.001,19344.0,19342.0,2.83846889]
[1664633449898,0.001,19344.0,19343.0,1.50163313]
[1664633450121,0.001,19344.0,19343.0,1.49831695]
[1664633450952,0.001,19344.0,19343.0,1.57731695]
[1664633451409,0.001,19344.0,19343.0,1.5367963]
[1664633451558,0.001,19344.0,19343.0,1.091118]
[1664633452021,0.001,19344.0,19343.0,1.012118]
[1664633452893,0.001,19344.0,19343.0,1.091118]
[1664633453122,0.001,19344.0,19343.0,0.466736]
[1664633454036,0.001,19344.0,19343.0,0.387736]
[1664633454944,0.077,19344.0,19343.0,0.512736]
[1664633456094,0.001,19344.0,19343.0,0.487736]
[1664633456747,0.001,19344.0,19343.0,0.512736]
[1664633457025,0.077,19344.0,19343.0,0.512736]
[1664633458079,0.001,19344.0,19343.0,0.1]
[1664633458302,0.001,19344.0,19343.0,0.179245]
[1664633458478,0.001,19344.0,19343.0,0.437736]
[1664633458901,0.077,19344.0,19343.0,0.462736]
[1664633460263,0.001,19344.0,19343.0,0.437736]
[1664633460511,0.001,19344.0,19343.0,0.387736]
[1664633460721,0.001,19344.0,19343.0,0.129245]
[1664633460968,0.001,19344.0,19343.0,0.177245]
[1664633462082,0.001,19344.0,19343.0,0.435736]
[1664633462350,0.001,19344.0,19343.0,0.387736]
[1664633462572,0.001,19344.0,19343.0,0.487736]
[1664633462999,0.001,19344.0,19343.0,0.556736]
[1664633463151,0.001,19344.0,19343.0,0.456736]
[1664633464345,0.001,19344.0,19343.0,0.387736]
[1664633464974,0.001,19344.0,19343.0,0.456736]
[1664633466179,0.001,19344.0,19343.0,0.387736]
[1664633467044,0.001,19344.0,19343.0,0.456736]
[1664633467436,0.001,19344.0,19343.0,0.556736]
[1664633467656,0.001,19344.0,19343.0,0.506736]
[1664633467947,0.001,19344.0,19343.0,0.456736]
[1664633468151,0.001,19344.0,19343.0,0.387736]
[1664633468580,0.001,19344.0,19343.0,0.437736]
[1664633468944,0.001,19344.0,19343.0,0.506736]
[1664633469166,0.001,19344.0,19343.0,0.456736]